Cogmind - Beta 16 @@@ ROGUE MODE // 2026.01.10 @ 12:40:05 Player: Artackni Result: Destroyed by 4J-Z12(j) with Overtuned Pulse Rifle Performance ------------- Evolutions (0) 0 Regions Visited (3) 600 Robots Destroyed (28) 140 Value Destroyed (738) 738 Prototype IDs (0) 0 Alien Tech Used (0) 0 Bonus (672) 672 TOTAL SCORE: 2150 Bonus ------- Registered with UFD 300 Met Optimus in HQ 500 Friendly Fire -128 Cogmind --------- Core Integrity 0/250 Matter 300/300 Energy 160/160 System Corruption 1% Temperature Cool (44) Movement Treading (240) Ox1 Location -9/Scraptown Parts ------- > --- POWER (1) -------- Light Nuclear Core > --- PROPULSION (2) --- Light Treads Compact Wheel > --- UTILITY (2) ------ Large Storage Unit Seismic Detector > --- WEAPON (2) ------- (None) > --- INVENTORY (15) --- Light Ion Engine Light Treads Overtuned Medium Treads Scrap Suit Seismic Detector Makeshift Hacking Suite Makeshift Hacking Suite A0-MCA's Component Scanner Plasma Rifle Overtuned Coil Gun Heavy Flak Cannon Great Maul Peak State ------------ > --- POWER ------------ Light Ion Engine > --- PROPULSION ------- Overtuned Medium Treads Compact Wheel > --- UTILITY ---------- Large Storage Unit Seismic Detector > --- WEAPON ----------- Hypervelocity Gauss Rifle Hypervelocity Gauss Rifle > --- INVENTORY -------- Light Ion Engine Light Treads Light Treads Compact Wheel Seismic Detector Makeshift Hacking Suite Makeshift Hacking Suite A0-MCA's Component Scanner Plasma Rifle Makeshift Shrapnel Gun Overtuned Coil Gun Heavy Flak Cannon Heavy Rocket Launcher Great Maul [Rating: 24] Favorites ----------- Power Light Ion Engine Engine Light Ion Engine Power Core Light Nuclear Core Propulsion Compact Wheel Treads Light Treads Wheel Compact Wheel Utility Seismic Detector Device Seismic Detector Storage Large Storage Unit Weapon EM Shotgun Energy Gun EM Shotgun Ballistic Gun Hypervelocity Gauss Rifle Launcher Heavy Rocket Launcher Build | -11 -10 -10 -9 ------- Run | Yrd Mat Sub Scr Slots Evolved . | . . . . Power . | . . . . Propulsion . | . . . . Utility . | . . . . Weapon . | . . . . Parts Attached 24 | 7 7 . 10 Power 5 | 1 2 . 2 Engine 4 | 1 2 . 1 Core 1 | . . . 1 Reactor . | . . . . Propulsion 6 | 2 . . 4 Treads 3 | 1 . . 2 Leg . | . . . . Wheel 3 | 1 . . 2 Hover . | . . . . Flight . | . . . . Utility 4 | 2 2 . . Device 2 | 1 1 . . Storage 2 | 1 1 . . Processor . | . . . . Hackware . | . . . . Protection . | . . . . Artifact . | . . . . Weapon 9 | 2 3 . 4 Energy Gun 5 | 2 3 . . Energy Cannon . | . . . . Ballistic Gun 3 | . . . 3 Ballistic Cannon . | . . . . Launcher 1 | . . . 1 Special Weapon . | . . . . Impact Weapon . | . . . . Slashing Weapon . | . . . . Piercing Weapon . | . . . . Special Melee Weapon . | . . . . Unidentified Prototypes . | . . . . Parts Lost 10 | . 3 . 7 Power 2 | . 1 . 1 Propulsion 2 | . . . 2 Utility 1 | . 1 . . Weapon 5 | . 1 . 4 Highest Loss Streak 4 | . 2 . 4 To Critical Strikes . | . . . . Average Backups 13 | 3 12 14 13 Power 1 | . 1 2 1 Propulsion 5 | 2 7 6 4 Utility 1 | . 1 2 1 Weapon 3 | . 2 3 5 Tool/Special . | . . . . Unused Backups 22 | . 3 . 19 Power 1 | . . . 1 Propulsion 6 | . 3 . 3 Utility 6 | . . . 6 Weapon 8 | . . . 8 Tool/Special 1 | . . . 1 Average Slot Usage (%) 99 | . 98 100 99 Engine 13 | . 13 14 13 Treads 6 | . 14 14 1 Wheel 21 | . 14 14 26 Device 13 | . 13 14 14 Storage 14 | . 14 14 14 Energy Gun 26 | . 27 28 25 Ballistic Gun 1 | . . . 1 Peak Build Rating 24 | 7 10 11 24 Average Rating 10 | 5 8 10 12 On Entrance 7 | . 7 10 11 Avg Prop Armor Cover (%) 12 | 13 13 12 13 Naked Turns . | . . . . Heaviest Build 39 | 13 30 30 39 Greatest Support 45 | 16 16 16 45 Greatest Overweight (x) 2 | . 1 1 2 Average Overweight (x) . | . . 1 1 Largest Inventory Capacity 15 | 8 15 15 15 Average Capacity 14 | 7 14 15 15 Most Carried 15 | 6 15 15 15 Average Carried 13 | 3 12 14 14 Final Capacity 15 | 8 15 15 15 Final Carried 15 | 6 15 15 13 Class Distribution -------------------- 100% | Mutant Dominant Class ---------------- Mutant | -10/Materials Mutant | -10/Subcaves Mutant | -9/Scraptown Resources | -11 -10 -10 -9 ----------- Run | Yrd Mat Sub Scr Matter Collected 612 | 243 92 . 277 Remotely . | . . . . Salvage Created 1188 | 44 392 . 752 Parts 51 | 4 25 . 22 Haulers Intercepted 2 | . 2 . . Recyclers Shooed 3 | 1 2 . . Parts Field Recycled . | . . . . Retrieved Matter . | . . . . Parts Self-Destructed . | . . . . Prevented . | . . . . Parts Restored . | . . . . Kills | -11 -10 -10 -9 ------- Run | Yrd Mat Sub Scr Combat Hostiles Destroyed 20 | . 9 . 11 Guns 17 | . 8 . 9 AOE 3 | . 1 . 2 Classes Destroyed 11 | 1 6 . 4 Builder 2 | . 2 . . Tunneler 2 | 2 . . . Hauler 2 | . 2 . . Watcher 1 | . 1 . . Swarmer 6 | . 6 . . Grunt 2 | . 2 . . Subdweller 1 | . 1 . . Federalist 1 | . . . 1 Ranger 2 | . . . 2 Scrapper 8 | . . . 8 Savage 1 | . . . 1 Best Kill Streak 5 | 1 5 . 4 Combat Bots Only 4 | . 3 . 4 Max Kills in Single Turn 2 | 1 2 . 2 Gunslinging . | . . . . Exploded 2 | . 1 . 2 Melee . | . . . . Uniques/NPCs Destroyed . | . . . . Combat | -11 -10 -10 -9 -------- Run | Yrd Mat Sub Scr Hostile Shots Fired 134 | . 49 . 85 Missed 39 | . 14 . 25 Hits 95 | . 35 . 60 Melee 1 | . . . 1 Projectile 94 | . 35 . 59 Critical Strikes 6 | . 1 . 5 Damage Taken 1317 | . 340 . 977 Core 261 | . 39 . 222 Absorbed by Shields . | . . . . Core Remaining (%) 100 | 100 . . . Volleys Fired 86 | 14 42 . 30 Largest 2 | 1 2 . 2 Hottest 90 | 50 90 . 90 Shots Fired 150 | 14 81 . 55 Gun 147 | 14 81 . 52 Cannon . | . . . . Launcher 3 | . . . 3 Special . | . . . . Kinetic 32 | . . . 32 Thermal 76 | 14 62 . . Explosive 3 | . . . 3 Electromagnetic 39 | . 19 . 20 Robot Hit Streak 11 | 5 11 . 9 Robot Miss Streak 5 | 2 5 . 4 Penetration Max 2 | . . . 2 Secondary Targets 1 | . 1 . . Max Gunslinging Chain 1 | . 1 . . Shots Hit Robots 91 | 10 43 . 38 Core Hits 54 | 3 21 . 30 Critical Kills 6 | . . . 6 Critical Parts Destroyed 4 | . . . 4 Critical Strikes 14 | 1 3 . 10 Burn 4 | 1 3 . . Destroy 10 | . . . 10 Melee Attacks . | . . . . Impact . | . . . . Slashing . | . . . . Piercing . | . . . . Sneak Attacks . | . . . . Combat Hostiles . | . . . . Follow-up Attacks . | . . . . Damage Inflicted 1606 | 124 692 . 790 Guns 1125 | 124 567 . 434 Cannons . | . . . . Explosions 472 | . 125 . 347 Melee . | . . . . Ramming 9 | . . . 9 Kinetic 220 | . . . 220 Thermal 646 | 124 522 . . Explosive 347 | . . . 347 Electromagnetic 384 | . 170 . 214 Impact . | . . . . Slashing . | . . . . Piercing . | . . . . Highest Corruption 1 | . . . 1 Average Corruption 1 | . . . 1 Corruption Purged . | . . . . Corruption Blocked . | . . . . Overload Shots . | . . . . Overflow Damage 1 | . . . 1 Projectiles . | . . . . Explosions 1 | . . . 1 Melee . | . . . . Knockbacks . | . . . . Impact . | . . . . Kinetic . | . . . . Secondary . | . . . . Self-Inflicted Damage 32 | . . . 32 Shots 1 | . . . 1 Rammed 2 | . . . 2 Targets Rammed 2 | . . . 2 Kicked . | . . . . Crushed . | . . . . Highest Temperature 230 | 120 203 . 230 Average Temperature 70 | 56 83 . 55 Received Heat Transfer 643 | . 111 . 532 Siege Activations . | . . . . Martial Activations . | . . . . Shielding Activations . | . . . . Robots Disrupted . | . . . . Combat Hostiles . | . . . . Robots Corrupted . | . . . . Combat Hostiles . | . . . . Parts Fried 1 | . . . 1 Impact Corruptions . | . . . . Robots Melted . | . . . . Combat Hostiles . | . . . . Parts Melted 7 | 1 3 . 3 Heat Transferred 2054 | 444 1610 . . Parts Sabotaged . | . . . . Parts Stolen . | . . . . Parts Stripped . | . . . . Power Chain Reactions 3 | . 3 . . Alert | -11 -10 -10 -9 ------- Run | Yrd Mat Sub Scr Maximum Alert Level . | . . . . Low Security (%) 100 | 100 100 . . Level 1 . | . . . . Level 2 . | . . . . Level 3 . | . . . . Level 4 . | . . . . Level 5 . | . . . . High Security . | . . . . Max Security . | . . . . Peak Influence 139 | 5 139 . . Initial 3 | . 3 . . Average 53 | . 59 . . Influence Increases 384 | 10 374 . . Destroy 0b10 Robot/C 160 | . 160 . . Destroy 0b10 Robot/NC 35 | 10 25 . . Destroy Leader 36 | . 36 . . Successful Hack 20 | . 20 . . Destroy Structure 13 | . 13 . . Lose Combat Pursuer 120 | . 120 . . Influence Decreases 384 | 5 366 13 . Entered New Map 9 | . 2 7 . Time Decay 345 | 5 334 6 . Lost Part 30 | . 30 . . Squads Dispatched . | . . . . Investigation . | . . . . Extermination . | . . . . Reinforcement . | . . . . Assault . | . . . . Garrison . | . . . . Intercept . | . . . . Searches Triggered . | . . . . Construction Impeded . | . . . . Haulers Reinforced . | . . . . Active Scanning Responses . | . . . . Cargo Convoy Interrupts . | . . . . Stealth | -11 -10 -10 -9 --------- Run | Yrd Mat Sub Scr Distress Signals 3 | . 3 . . Communications Jammed . | . . . . Distress Signals . | . . . . Times Spotted 49 | . 22 . 27 Peak Tracking Total 5 | . 4 . 5 Tactical Retreats 6 | . 6 . . Traps | -11 -10 -10 -9 ------- Run | Yrd Mat Sub Scr Traps Triggered . | . . . . Indirectly . | . . . . Trap Hack Attempts . | . . . . Triggered . | . . . . Disarmed . | . . . . Reprogrammed . | . . . . Reused . | . . . . Traps Extracted . | . . . . Installed . | . . . . Triggered . | . . . . Machines | -11 -10 -10 -9 ---------- Run | Yrd Mat Sub Scr Machines Disabled . | . . . . Max in Single Turn . | . . . . Machines Repaired . | . . . . Machines Dismantled . | . . . . Machines Sabotaged . | . . . . Overloaded Fab Kills . | . . . . Hacking | -11 -10 -10 -9 --------- Run | Yrd Mat Sub Scr Machines Accessed 7 | . 3 . 4 Terminals 2 | . 2 . . Fabricators . | . . . . Repair Stations . | . . . . Recycling Units 1 | . 1 . . Scanalyzers . | . . . . Garrison Access . | . . . . Total Hacks 20 | . 6 . 14 Successful 17 | . 3 . 14 Failed 3 | . 3 . . Catastrophic . | . . . . Database Lockouts . | . . . . Manual 3 | . 3 . . Terminals 5 | . 5 . . Fabricators . | . . . . Repair Stations . | . . . . Recycling Units 1 | . 1 . . Scanalyzers . | . . . . Garrison Access . | . . . . Terminal Hacks 15 | . 1 . 14 Record 14 | . . . 14 Robot Analysis 1 | . 1 . . Fabricator Hacks . | . . . . Repair Station Hacks . | . . . . Recycling Unit Hacks 1 | . 1 . . Retrieve Components 1 | . 1 . . Scanalyzer . | . . . . Garrison Access Hacks . | . . . . Unauthorized Hacks 1 | . 1 . . Terminals 1 | . 1 . . Operators 1 | . 1 . . Fabricators . | . . . . Repair Stations . | . . . . Recycling Units . | . . . . Scanalyzers . | . . . . Garrison Access . | . . . . Data Cores Recovered . | . . . . Used . | . . . . Hacking Detections 1 | . 1 . . Full Trace Events . | . . . . Feedback Events . | . . . . Feedback Blocked . | . . . . Robot Schematics Acquired . | . . . . Robots Built . | . . . . Authchips . | . . . . Time . | . . . . Total Robot Build Rating . | . . . . Part Schematics Acquired . | . . . . Parts Built . | . . . . Authchips . | . . . . Time . | . . . . Total Part Build Rating . | . . . . Part Studies Acquired . | . . . . Parts Repaired . | . . . . Time . | . . . . Parts Recycled . | . . . . Recycled Matter . | . . . . Retrieved Matter . | . . . . Retrieved Components 8 | . 8 . . Parts Scanalyzed . | . . . . Part Schematics Acquired . | . . . . Parts Damaged . | . . . . Bothacking | -11 -10 -10 -9 ------------ Run | Yrd Mat Sub Scr Used RIF Installer . | . . . . Robots Hacked . | . . . . Non-combat . | . . . . Combat . | . . . . Robot Hacks Applied . | . . . . Relay Couplers Released . | . . . . Fabnet Peak Effective % . | . . . . Robots Rewired . | . . . . Allies Hacked . | . . . . Hacks Repelled . | . . . . Allies | -11 -10 -10 -9 -------- Run | Yrd Mat Sub Scr Total Allies . | . . . . Largest Group . | . . . . Highest-Rated Group . | . . . . Highest-Rated Ally . | . . . . Total Orders . | . . . . Ally Attacks . | . . . . Total Damage . | . . . . Kills . | . . . . Allies Corrupted . | . . . . Allies Melted 4 | . . . 4 Intel | -11 -10 -10 -9 ------- Run | Yrd Mat Sub Scr Active Infowar (turns) 2349 | 6 761 209 1373 Seismic 2349 | 6 761 209 1373 Robot Analysis Total 1 | . 1 . . Derelict Logs Recovered 2 | . . . 2 Drone Launches . | . . . . Drone Recoveries . | . . . . Exploration | -11 -10 -10 -9 ------------- Run | Yrd Mat Sub Scr Turns Passed 2483 | 92 809 209 1373 Spaces Moved 1842 | 50 429 180 1183 Core 5 | 5 . . . Treads 5 | . . . 5 Legs . | . . . . Wheels 1832 | 45 429 180 1178 Hover . | . . . . Flight . | . . . . Fastest Speed 50 | 50 100 115 105 Average Speed 108 | 95 113 115 105 Slowest Speed 150 | 100 115 115 150 Overloaded Moves . | . . . . Propulsion Burnouts . | . . . . Robots Hopped . | . . . . Potential Cave-ins . | . . . . Cave-ins Triggered . | . . . . Exploration Rate (%) 44 | 4 72 15 85 Regions Visited 3 Branch Regions 2 Pre-discovered Areas 2 | . . . 2 Known Exits Taken . | . . . . Unknown Exits Taken 3 | 1 1 1 . Scrap Searched 9 | . . 3 6 Spaces Dug . | . . . . Terrain Destroyed 68 | . 12 . 56 Melee . | . . . . Projectile . | . . . . AOE 68 | . 12 . 56 Terrain Rammed . | . . . . Walls Destroyed . | . . . . Machines Disabled . | . . . . Actions | -11 -10 -10 -9 --------- Run | Yrd Mat Sub Scr Total 2181 | 77 670 183 1251 Wait 177 | . 177 . . Move 1839 | 49 428 179 1183 Hop . | . . . . Pick Up 34 | 7 11 2 14 Fast Attach 7 | 6 1 . . Attach 8 | 1 2 . 5 Detach . | . . . . Swap 10 | . 5 . 5 Drop 18 | . 4 2 12 Fire 86 | 14 42 . 30 Melee . | . . . . Ram 1 | . . . 1 Kick . | . . . . Crush 1 | . . . 1 Escape Stasis . | . . . . Rewire . | . . . . Trap . | . . . . Miscellaneous . | . . . . Route ------- -11/Scrapyard -10/Materials (discovered 4 exits: [*Mat x2] / [*Min] / [*Sub]) -10/Subcaves -9/Scraptown (discovered 2 exits: [*Fac x2]) History --------- Turn | Location | Event 19 | -11/Scrapyard | Discovered new exit (range 16) 93 | -11/Scrapyard | Entered Materials 172 | -10/Materials | Discovered new exit (range 3) 310 | -10/Materials | Build established: Mutant 437 | -10/Materials | Discovered new exit (range 12) 614 | -10/Materials | Discovered new exit (range 8) 615 | -10/Materials | Discovered new exit (range 15) 693 | -10/Materials | Derelicts attacked the area 902 | -10/Materials | Entered Subcaves 903 | -10/Subcaves | Approached by a straggling Scientist 1107 | -10/Subcaves | Scientist uncovered a shortcut to Scraptown 1111 | -10/Subcaves | Entered Scraptown 1272 | -9/Scraptown | Scanned Subdweller tech in exchange for log data 1275 | -9/Scraptown | Learned location of Extension (-6) 1276 | -9/Scraptown | Learned location of Armory (-4) 1299 | -9/Scraptown | Visited Cyclists 1337 | -9/Scraptown | Visited Bundlers 1406 | -9/Scraptown | Visited Spacefarers 1480 | -9/Scraptown | Visited SPCMW 1507 | -9/Scraptown | Visited Shadow of the Wyrm 1721 | -9/Scraptown | Visited Fellowship of the Rings 1733 | -9/Scraptown | Visited The Evicted 1779 | -9/Scraptown | Discovered new exit (range 11) 1957 | -9/Scraptown | Visited UFD Registry 1957 | -9/Scraptown | Registered with UFD as "Arcdriver" 1988 | -9/Scraptown | Visited Modified Component R&D 2054 | -9/Scraptown | Visited Abandonware Association 2062 | -9/Scraptown | Learned abandonware demo "OVRCLOCK.EXE" 2066 | -9/Scraptown | Learned abandonware demo "MELTYB.EXE" 2091 | -9/Scraptown | Visited A0-MCA Data Center 2098 | -9/Scraptown | Given a C+ rating by A0-MCA 2102 | -9/Scraptown | Found A0-MCA's Component Scanner 2142 | -9/Scraptown | Met Optimus 2142 | -9/Scraptown | Accepted into 0bPrime 2184 | -9/Scraptown | Visited Research Penetration Think Tank 2206 | -9/Scraptown | Visited Junk Repository 2237 | -9/Scraptown | Visited Observation Area 2239 | -9/Scraptown | Civil war broke out across Scraptown 2388 | -9/Scraptown | Core integrity fell below 50% 2398 | -9/Scraptown | Found Scrap Suit 2427 | -9/Scraptown | Core integrity fell below 20% 2458 | -9/Scraptown | Lost 4 parts (1p1n2w) 2462 | -9/Scraptown | Discovered new exit (range 13) 2484 | -9/Scraptown | Destroyed by 4J-Z12(j) with Overtuned Pulse Rifle Last Messages --------------- 02452_ Chain reaction triggered in Lgt. Deuterium Engine. 02452_ QH-76N(j) destroyed. 02460_ Lgt. Deuterium Engine melted. 02460_ XC-WQ1(j) destroyed. 02460_ EN-2ZU(p) destroyed. 02462_ The unstable cave ceiling collapses. 02462_ Ovr. Pulse Rifle crushed. 02462_ EXIT=FOUND 02462_ Hyp. Gauss Rifle destroyed. 02462_ Destroyed Hyp. Gauss Rifle. 02469_ Acquired 12 matter. 02470_ Acquired 35 matter. 02471_ 4J-Z12(j) switches sides. 02474_ 4J-Z12(j) suffers critical hit (Burn). 02477_ WA-P8R(g) destroyed. 02477_ Critical hit (Burn: +50). 02480_ Hvy. Rocket Launcher destroyed. 02481_ Slammed into PS-77V(g). 02483_ Critical hit (Burn: +50). 02484_ The unstable cave ceiling collapses. Map ----- +----------------------------------------------------+ | | | | | | | | | | | | | | | | | | | | | ?????????????????????????????????????????????????? | | ?????????????????????????????????????????????????? | | ?????????????????????????????????????????????????? | | ?????????????????????????????????????????????????? | | ?????????????????????????????????????????????????? | | ?????????????????????????????????????????????????? | | ?????????????????????????????????????????????????? | | ?????????????????????????????????????????????????? | | ?????????????????????????????????????????????????? | | ?????????????????????????????????????????????????? | | ?????????????????????????????????????????????????? | | ????????????###???????#####??????????????????????? | | ????????????# #########%""#??????????????????????? | | ????????????# ## ==="###????????????????????? | | ?????#""???## # !*%g*%[#????????????????????? | | #"" ##!!"### ! #%j@!%##???????????????????? | | !! % %![=jx! #???????????????????? | | !!![[==[%!![= ##???????????????????? | | ############ !=%! = == #???????????????????? | | ???????????###[%=## # #???????????????????? | | ?????????????#=!### ##???????????????????? | | ????########?# !#?#### # ##????????????????????? | | #??#"""""""""# %#????#######?????????????????????? | | #??#"""""""""# #????????????????????????????????? | | #??#"""""""""#!%#????????????????????????????????? | | #??#"""""""""#!=#??###???????????????????????????? | | #??#""" """#=[#??!!!?"?????????????????????????? | | #??#""" """#[%#??!!?!!?????????????????????????? | | #??#""" "!"#!=#?? !??????????????????????????? | | #??#"""" ["""#[[#? !??????????????????????????? | | #??#""" """#%*#"" ????????????????????????????? | | #??#" #[/#" ?????????????????????????????? | | #??##### #####!%%# #?????????????????????????????? | | #######"!#####[=##*########??????????????????????? | | """""""" """""%%!"="## ???????????????????????? | | =! !!=%*!%!!"## ????????????????????????? | | =[* =[==[=!=="## ####?????????????????????? | | !% !=[=!==="## [#?????????????????????? | | [==!=**! "## ]!#?????????????????????? | | !*!! =#?????????????????????? | +----------------------------------------------------+ Best States ------------- Heat Dissipation 25 Energy Generation 14 Energy Capacity 160 Matter Stores 300 Matter Capacity 300 Sight Range 16 Terrain Scan Density 10 Evasion (%) 40 Recoil Reduction 2 Item Schematics ----------------- None Robot Schematics ------------------ None Fabricated ------------ Nothing Repaired ---------- Nothing Studied --------- None Alien Tech Used ----------------- None Achievements -------------- Nice Directions, Buddy Challenges ------------ None Game ------ Seed DeliveryAssembledAutobeam Manual? 0 Play Time 00:41:29 Cumulative 59.1 hours Start 2026.01.10 @ 11:58:51 End 2026.01.10 @ 12:40:05 Sessions 1 Manual Loads 0 Difficulty Rogue Special Mode None Game No. 21 Rogue 21 Adventurer 0 Explorer 0 Win Type - Total 1 Types 1/0/0/0/0/0/0/0/0/0 Lore% 33 Gallery% 41 Achievement% 35 Wizard Run 0 Options --------- Layout 0 ASCII 0 Keyboard 1 Movement Arrows Keybinds 0 Fullscreen 1 Font 18/SmallcapsGlow Map View 76x50 Zoom Use 0% Tactical HUD 1 Map Filters NONE Filters NONE Steam 1 RUN: b75a6c75-c51d-4722-abff-c85a0ff0b9a7